[Event "12th National Schools-ch 2024"]
[Site "Gyan Bhawan Patna"]
[Date "2024.02.06"]
[Round "2.2"]
[White "Advik Amit Agrawal"]
[Black "Paladugu Sai Shreyan"]
[Result "1/2-1/2"]
[ECO "C54"]
[WhiteElo "1490"]
[BlackElo "1018"]
[Annotator "NA RC"]
[PlyCount "118"]
[EventDate "2024.02.05"]
[EventCountry "IND"]
[SourceTitle "playchess.com"]
[Source "ChessBase"]
[SourceQuality "1"]
[TimeControl "5400+30"]

1. e4 {[%emt 1:31:00]} e5 {[%emt 0:00:08]} 2. Nf3 {[%emt 0:00:00]} Nc6 {[%emt 0:00:07]} 3. Bc4 {[%emt 0:00:00]} Bc5 {[%emt 0:00:06]} 4. c3 {[%emt 0:00:00]} Nf6 {[%emt 0:00:06]} 5. d3 {[%emt 0:00:00]} d6 {[%emt 0:00:14]} 6. h3 {[%emt 0:00:00]} a6 {[%emt 0:00:07]} 7. Bb3 {[%emt 0:00:00]} Ba7 {[%emt 0:00:14]} 8. O-O {[%emt 0:00:00]} Qe7 {[%emt 0:00:35]} 9. Be3 {[%emt 0:00:00]} Be6 {[%emt 0:00:12]} 10. Bc2 {[%emt 0:00:00]} O-O {[%emt 0:00:22]} 11. Nbd2 {[%emt 0:00:00]} d5 {[%emt 0:02:53]} 12. Bxa7 {[%emt 0:00:00]} Rxa7 {[%emt 0:00:14]} 13. Re1 {[%emt 0:00:00]} dxe4 {[%emt 0:05:01]} 14. Nxe4 {[%emt 0:00:00]} Nxe4 {[%emt 0:02:07]} 15. dxe4 {[%emt 0:00:00]} Raa8 {[%emt 0:01:25]} 16. Qe2 {[%emt 0:00:00]} Rad8 {[%emt 0:04:07]} 17. b4 {[%emt 0:00:00]} Qf6 {[%emt 0:03:40]} 18. a4 {[%emt 0:00:00]} a5 {[%emt 0:06:29]} 19. bxa5 {[%emt 0:00:00]} Nxa5 {[%emt 0:00:17]} 20. Qb5 {[%emt 0:00:00]} Nc4 {[%emt 0:01:05]} 21. Red1 {[%emt 0:00:00]} Qg6 {[%emt 0:02:35]} 22. Rxd8 {[%emt 0:00:00]} Rxd8 {[%emt 0:00:30]} 23. Rd1 {[%emt 0:00:00]} Rxd1+ {[%emt 0:01:26]} 24. Bxd1 {[%emt 0:00:00]} Nd6 {[%emt 0:00:13]} 25. Qxe5 {[%emt 0:00:00]} Qxe4 {[%emt 0:00:34]} 26. Qd4 {[%emt 0:00:00]} Qg6 {[%emt 0:02:35]} 27. Ne5 {[%emt 0:00:00]} Qe4 {[%emt 0:03:56]} 28. Bf3 {[%emt 0:00:00]} Qxd4 {[%emt 0:01:47]} 29. cxd4 {[%emt 0:00:00]} c6 {[%emt 0:01:21]} 30. Kf1 {[%emt 0:00:00]} Nf5 {[%emt 0:00:31]} 31. a5 {[%emt 0:00:00]} Nxd4 {[%emt 0:00:52]} 32. a6 {[%emt 0:00:00]} bxa6 {[%emt 0:00:24]} 33. Bxc6 {[%emt 0:00:00]} Nxc6 {[%emt 0:00:12]} 34. Nxc6 {[%emt 0:00:00]} Kf8 {[%emt 0:00:25]} 35. g4 {[%emt 0:00:00]} h5 {[%emt 0:00:17]} 36. f3 {[%emt 0:00:00]} Ke8 {[%emt 0:00:41]} 37. Ke2 {[%emt 0:00:00]} Kd7 {[%emt 0:00:22]} 38. Nd4 {[%emt 0:00:00]} hxg4 {[%emt 0:00:32]} 39. hxg4 {[%emt 0:00:00]} Kd6 {[%emt 0:00:13]} 40. Kd3 {[%emt 0:00:00]} Kc5 {[%emt 0:00:32]} 41. Kc3 {[%emt 0:00:00]} a5 {[%emt 0:00:11]} 42. g5 {[%emt 0:00:00]} g6 {[%emt 0:00:18]} 43. Nc2 {[%emt 0:00:00]} a4 {[%emt 0:00:33]} 44. Na3 {[%emt 0:00:00]} Kd5 {[%emt 0:01:37]} 45. Kd3 {[%emt 0:00:00]} Bf5+ {[%emt 0:00:09]} 46. Kc3 {[%emt 0:00:00]} Ke5 {[%emt 1:01:15]} 47. Nc4+ {[%emt 0:00:00]} Kf4 {[%emt 0:00:00]} 48. Nd6 {[%emt 0:00:00]} Be6 {[%emt 0:00:00]} 49. Ne4 {[%emt 0:00:00]} Kxf3 {[%emt 0:00:00]} 50. Nf6 {[%emt 0:00:00]} Kf4 {[%emt 0:00:00]} 51. Nh7 {[%emt 0:00:00]} a3 {[%emt 0:00:00]} 52. Kc2 {[%emt 0:00:00]} a2 {[%emt 0:00:00]} 53. Kb2 {[%emt 0:00:00]} f5 {[%emt 0:00:00]} 54. gxf6 {[%emt 0:00:00]} Bg8 {[%emt 0:00:00]} 55. Ka1 {[%emt 0:00:00]} Ke5 {[%emt 0:00:00]} 56. Kb2 {[%emt 0:00:00]} Ke6 {[%emt 0:00:00]} 57. Nf8+ {[%emt 0:00:00]} Kxf6 {[%emt 0:00:00]} 58. Nxg6 {[%emt 0:00:00]} a1=Q+ {[%emt 0:00:00]} 59. Kxa1 {[%emt 0:00:00]} Kxg6 {[%emt 0:00:00]} 1/2-1/2

[Event "12th National Schools-ch 2024"]
[Site "Gyan Bhawan Patna"]
[Date "2024.02.06"]
[Round "2.3"]
[White "Pal Vedika"]
[Black "Ritisha Mayra Rajbongshi"]
[Result "1-0"]
[ECO "C50"]
[WhiteElo "1539"]
[BlackElo "1063"]
[Annotator "NA RC"]
[PlyCount "53"]
[EventDate "2024.02.05"]
[EventCountry "IND"]
[SourceTitle "playchess.com"]
[Source "ChessBase"]
[SourceQuality "1"]
[TimeControl "5400+30"]

1. e4 {[%emt 0:06:21]} e5 {[%emt 0:00:09]} 2. Nf3 {[%emt 0:00:14]} Nc6 {[%emt 0:00:05]} 3. d4 {[%emt 0:01:29]} exd4 {[%emt 0:00:07]} 4. Bc4 {[%emt 0:00:19]} Nf6 {[%emt 0:00:07]} 5. O-O {[%emt 0:01:46]} d6 {[%emt 0:10:10]} 6. Nxd4 {[%emt 0:13:56]} Be7 {[%emt 0:01:43]} 7. Nc3 {[%emt 0:07:26]} O-O {[%emt 0:02:25]} 8. h3 {[%emt 0:10:35]} h6 {[%emt 0:01:53]} 9. Re1 {[%emt 0:02:56]} Nd7 {[%emt 0:15:36]} 10. Nd5 {[%emt 0:13:39]} Bf6 {[%emt 0:02:39]} 11. Nb5 {[%emt 0:05:02]} Nce5 {[%emt 0:04:25]} 12. Bb3 {[%emt 0:01:37]} c6 {[%emt 0:01:10]} 13. Nxf6+ {[%emt 0:00:28]} Nxf6 {[%emt 0:00:27]} 14. Nxd6 {[%emt 0:12:06]} Ne8 {[%emt 0:20:09]} 15. Nxf7 {[%emt 0:08:59]} Qxd1 {[%emt 0:01:09]} 16. Nxe5+ {[%emt 0:00:05]} Kh7 {[%emt 0:01:51]} 17. Rxd1 {[%emt 0:00:04]} Nf6 {[%emt 0:00:38]} 18. c3 {[%emt 0:03:48]} Re8 {[%emt 0:02:50]} 19. Bf4 {[%emt 0:02:03]} Be6 {[%emt 0:01:53]} 20. Bxe6 {[%emt 0:01:03]} Rxe6 {[%emt 0:00:15]} 21. f3 {[%emt 0:00:52]} Re7 {[%emt 0:02:06]} 22. Nc4 {[%emt 0:01:24]} Rf8 {[%emt 0:01:53]} 23. Bd6 {[%emt 0:00:04]} Rfe8 {[%emt 0:01:08]} 24. Bxe7 {[%emt 0:00:02]} Rxe7 {[%emt 0:00:22]} 25. Ne3 {[%emt 0:00:01]} Re8 {[%emt 0:03:08]} 26. Nf5 {[%emt 0:00:04]} Kg8 {[%emt 0:02:26]} 27. Rd3 {[%emt 0:00:20]} 1-0

[Event "12th National Schools-ch 2024"]
[Site "Gyan Bhawan Patna"]
[Date "2024.02.06"]
[Round "2.4"]
[White "Virat J S"]
[Black "Andalamala Hemal Varshan"]
[Result "0-1"]
[ECO "B24"]
[WhiteElo "1180"]
[BlackElo "1578"]
[Annotator "NA RC"]
[PlyCount "94"]
[EventDate "2024.02.05"]
[EventCountry "IND"]
[SourceTitle "playchess.com"]
[Source "ChessBase"]
[SourceQuality "1"]
[TimeControl "5400+30"]

1. e4 {[%emt 0:00:06]} c5 {[%emt 0:00:10]} 2. Nc3 {[%emt 0:00:27]} g6 {[%emt 0:01:47]} 3. g3 {[%emt 0:00:34]} Bg7 {[%emt 0:00:48]} 4. Nge2 {[%emt 0:02:20]} Nc6 {[%emt 0:01:30]} 5. Bg2 {[%emt 0:00:58]} e6 {[%emt 0:01:58]} 6. O-O {[%emt 0:02:47]} Nge7 {[%emt 0:03:29]} 7. f4 {[%emt 0:03:24]} d5 {[%emt 0:03:25]} 8. exd5 {[%emt 0:02:56]} exd5 {[%emt 0:00:51]} 9. Kh1 {[%emt 0:04:26]} O-O {[%emt 0:03:01]} 10. d3 {[%emt 0:06:36]} Re8 {[%emt 0:04:16]} 11. Bd2 {[%emt 0:03:21]} Bg4 {[%emt 0:01:01]} 12. h3 {[%emt 0:08:11]} Be6 {[%emt 0:00:57]} 13. Be1 {[%emt 0:03:03]} Qd7 {[%emt 0:02:52]} 14. Kh2 {[%emt 0:02:59]} f5 {[%emt 0:04:26]} 15. Ng1 {[%emt 0:03:40]} d4 {[%emt 0:01:15]} 16. Na4 {[%emt 0:04:51]} b6 {[%emt 0:01:18]} 17. Nf3 {[%emt 0:01:37]} Nd5 {[%emt 0:01:14]} 18. Bf2 {[%emt 0:01:45]} Qd6 {[%emt 0:02:09]} 19. b3 {[%emt 0:11:59]} Ne3 {[%emt 0:06:03]} 20. Bxe3 {[%emt 0:00:12]} dxe3 {[%emt 0:00:03]} 21. Ne5 {[%emt 0:01:41]} Bd5 {[%emt 0:11:32]} 22. Bxd5+ {[%emt 0:02:26]} Qxd5 {[%emt 0:00:48]} 23. Nc3 {[%emt 0:01:02]} Qe6 {[%emt 0:00:31]} 24. Rb1 {[%emt 0:10:32]} Bxe5 {[%emt 0:05:46]} 25. fxe5 {[%emt 0:00:26]} Qxe5 {[%emt 0:00:03]} 26. Ne2 {[%emt 0:00:24]} Nd4 {[%emt 0:00:19]} 27. Rc1 {[%emt 0:02:18]} Rad8 {[%emt 0:02:18]} 28. a4 {[%emt 0:01:58]} Qd5 {[%emt 0:01:25]} 29. Nxd4 {[%emt 0:01:18]} cxd4 {[%emt 0:00:19]} 30. Qe2 {[%emt 0:00:28]} Rc8 {[%emt 0:00:24]} 31. Rfe1 {[%emt 0:01:24]} Rc3 {[%emt 0:01:28]} 32. Rf1 {[%emt 0:00:30]} Rec8 {[%emt 0:02:15]} 33. Rg1 {[%emt 0:00:55]} Qc5 {[%emt 0:02:39]} 34. Qf3 {[%emt 0:04:45]} Rxc2+ {[%emt 0:02:11]} 35. Rxc2 {[%emt 0:00:03]} Qxc2+ {[%emt 0:00:01]} 36. Kh1 {[%emt 0:00:11]} Qc6 {[%emt 0:00:24]} 37. Qxc6 {[%emt 0:00:21]} Rxc6 {[%emt 0:00:02]} 38. g4 {[%emt 0:00:11]} f4 {[%emt 0:00:10]} 39. Kg2 {[%emt 0:00:10]} Rc2+ {[%emt 0:00:09]} 40. Kf3 {[%emt 0:00:08]} Rf2+ {[%emt 0:00:08]} 41. Ke4 {[%emt 0:00:09]} e2 {[%emt 0:00:14]} 42. Rc1 {[%emt 0:00:42]} Rf1 {[%emt 0:01:24]} 43. Rc8+ {[%emt 0:00:11]} Kf7 {[%emt 0:00:17]} 44. Rc7+ {[%emt 0:00:28]} Ke6 {[%emt 0:00:07]} 45. Rc8 {[%emt 0:00:14]} e1=Q+ {[%emt 0:00:17]} 46. Kxd4 {[%emt 0:00:05]} Qe5+ {[%emt 0:01:04]} 47. Kc4 {[%emt 0:00:30]} Rc1+ {[%emt 0:35:12]} 0-1

[Event "12th National Schools-ch 2024"]
[Site "Gyan Bhawan Patna"]
[Date "2024.02.06"]
[Round "2.5"]
[White "Sahana Shainsha"]
[Black "Aamuktha Guntaka"]
[Result "1/2-1/2"]
[ECO "B22"]
[WhiteElo "1298"]
[BlackElo "1548"]
[Annotator "NA RC"]
[PlyCount "66"]
[EventDate "2024.02.05"]
[EventCountry "IND"]
[SourceTitle "playchess.com"]
[Source "ChessBase"]
[SourceQuality "1"]
[TimeControl "5400+30"]

1. e4 {[%emt 0:00:14]} c5 {[%emt 0:00:23]} 2. c3 {[%emt 0:00:09]} Nf6 {[%emt 0:00:13]} 3. e5 {[%emt 0:00:09]} Nd5 {[%emt 0:00:07]} 4. Nf3 {[%emt 0:00:16]} e6 {[%emt 0:00:36]} 5. d4 {[%emt 0:00:10]} cxd4 {[%emt 0:01:15]} 6. cxd4 {[%emt 0:00:18]} d6 {[%emt 0:00:41]} 7. Bc4 {[%emt 0:00:42]} Nb6 {[%emt 0:01:06]} 8. Bd3 {[%emt 0:00:48]} Be7 {[%emt 0:01:27]} 9. Nc3 {[%emt 1:32:14]} O-O {[%emt 0:07:44]} 10. O-O {[%emt 0:00:00]} Nc6 {[%emt 0:05:28]} 11. h3 {[%emt 0:00:00]} a6 {[%emt 0:06:04]} 12. a3 {[%emt 0:00:00]} Qc7 {[%emt 0:01:18]} 13. Qe2 {[%emt 0:00:00]} Rd8 {[%emt 0:07:21]} 14. Bf4 {[%emt 0:00:00]} g6 {[%emt 0:03:07]} 15. Rac1 {[%emt 0:00:00]} dxe5 {[%emt 0:10:03]} 16. dxe5 {[%emt 0:00:00]} Bd7 {[%emt 0:01:35]} 17. Bg3 {[%emt 0:00:00]} Be8 {[%emt 0:02:34]} 18. Rfd1 {[%emt 0:00:00]} Nd5 {[%emt 0:04:02]} 19. Nxd5 {[%emt 0:00:00]} Rxd5 {[%emt 0:00:31]} 20. Be4 {[%emt 0:00:00]} Rxd1+ {[%emt 0:04:39]} 21. Qxd1 {[%emt 0:00:00]} Qb6 {[%emt 0:03:49]} 22. Qd2 {[%emt 0:00:00]} Rd8 {[%emt 0:02:53]} 23. Qc3 {[%emt 0:00:00]} Rc8 {[%emt 0:10:18]} 24. Bf4 {[%emt 0:00:00]} Na7 {[%emt 0:03:13]} 25. Qd2 {[%emt 0:00:00]} Rxc1+ {[%emt 0:01:27]} 26. Qxc1 {[%emt 0:00:00]} Bc5 {[%emt 0:01:16]} 27. Qd2 {[%emt 0:00:00]} Bc6 {[%emt 0:01:06]} 28. Bxc6 {[%emt 0:00:00]} Nxc6 {[%emt 0:00:09]} 29. Bg5 {[%emt 0:00:00]} Be7 {[%emt 0:05:52]} 30. Bxe7 {[%emt 0:00:00]} Nxe7 {[%emt 0:00:05]} 31. Ng5 {[%emt 0:04:29]} Qc7 {[%emt 0:01:15]} 32. f4 {[%emt 0:01:56]} Nd5 {[%emt 0:02:05]} 33. Ne4 {[%emt 0:00:30]} Qb6+ {[%emt 0:03:39]} 1/2-1/2

[Event "12th National Schools-ch 2024"]
[Site "Gyan Bhawan Patna"]
[Date "2024.02.06"]
[Round "2.6"]
[White "Nimay Agrawal"]
[Black "Yatharth Nathani"]
[Result "1-0"]
[ECO "B33"]
[WhiteElo "2067"]
[BlackElo "1194"]
[Annotator "NA RC"]
[PlyCount "49"]
[EventDate "2024.02.05"]
[EventCountry "IND"]
[SourceTitle "playchess.com"]
[Source "ChessBase"]
[SourceQuality "1"]
[TimeControl "5400+30"]

1. e4 {[%emt 0:00:08]} c5 {[%emt 0:00:19]} 2. Nf3 {[%emt 0:00:13]} Nc6 {[%emt 0:00:31]} 3. d4 {[%emt 0:00:17]} cxd4 {[%emt 0:00:37]} 4. Nxd4 {[%emt 0:00:09]} e5 {[%emt 0:01:10]} 5. Nb5 {[%emt 0:00:54]} d6 {[%emt 0:02:05]} 6. N1c3 {[%emt 0:01:11]} a6 {[%emt 0:02:34]} 7. Na3 {[%emt 0:00:23]} b5 {[%emt 0:02:19]} 8. Nd5 {[%emt 0:00:44]} Nf6 {[%emt 0:05:59]} 9. Bg5 {[%emt 0:01:04]} Be7 {[%emt 0:01:47]} 10. Bxf6 {[%emt 0:01:10]} Bxf6 {[%emt 0:00:37]} 11. c3 {[%emt 0:01:26]} Bb7 {[%emt 0:02:42]} 12. Nc2 {[%emt 0:03:13]} O-O {[%emt 0:05:47]} 13. Nce3 {[%emt 0:02:09]} Rc8 {[%emt 0:01:47]} 14. Bd3 {[%emt 0:04:12]} Bg5 {[%emt 0:05:41]} 15. O-O {[%emt 0:02:52]} Ne7 {[%emt 0:01:53]} 16. Nxe7+ {[%emt 0:07:19]} Qxe7 {[%emt 0:01:42]} 17. Nf5 {[%emt 0:02:06]} Qe6 {[%emt 0:02:24]} 18. Bc2 {[%emt 0:05:18]} Rfd8 {[%emt 0:06:54]} 19. Qg4 {[%emt 0:02:16]} Qg6 {[%emt 0:01:26]} 20. Rad1 {[%emt 0:01:25]} b4 {[%emt 0:09:50]} 21. Rd3 {[%emt 0:07:50]} bxc3 {[%emt 0:03:53]} 22. bxc3 {[%emt 0:00:12]} Rc4 {[%emt 0:09:43]} 23. Rg3 {[%emt 0:01:33]} h6 {[%emt 0:09:52]} 24. h4 {[%emt 0:02:26]} Bxh4 {[%emt 0:01:15]} 25. Qxh4 {[%emt 0:00:34]} 1-0

[Event "12th National Schools-ch 2024"]
[Site "Gyan Bhawan Patna"]
[Date "2024.02.06"]
[Round "2.7"]
[White "Sherali Pattnaik"]
[Black "Srinika Guin"]
[Result "1/2-1/2"]
[ECO "C45"]
[WhiteElo "1501"]
[BlackElo "1242"]
[Annotator "NA RC"]
[PlyCount "98"]
[EventDate "2024.02.05"]
[EventCountry "IND"]
[SourceTitle "playchess.com"]
[Source "ChessBase"]
[SourceQuality "1"]
[TimeControl "5400+30"]

1. e4 {[%emt 0:01:25]} e5 {[%emt 0:00:27]} 2. Nf3 {[%emt 0:00:05]} Nc6 {[%emt 0:00:24]} 3. d4 {[%emt 0:00:07]} exd4 {[%emt 0:00:14]} 4. Nxd4 {[%emt 0:00:06]} Bc5 {[%emt 0:00:17]} 5. Nb3 {[%emt 0:00:05]} Bb6 {[%emt 0:00:15]} 6. Qe2 {[%emt 0:00:10]} d6 {[%emt 0:06:59]} 7. Be3 {[%emt 0:00:52]} Bxe3 {[%emt 0:12:22]} 8. Qxe3 {[%emt 0:00:15]} Nf6 {[%emt 0:00:24]} 9. Nc3 {[%emt 0:00:36]} Bd7 {[%emt 0:09:47]} 10. O-O-O {[%emt 0:02:01]} O-O {[%emt 0:00:33]} 11. f3 {[%emt 0:01:14]} a5 {[%emt 0:04:47]} 12. a3 {[%emt 0:01:14]} a4 {[%emt 0:04:37]} 13. Nd4 {[%emt 0:01:02]} Re8 {[%emt 0:02:41]} 14. g4 {[%emt 0:01:31]} Nxd4 {[%emt 0:04:37]} 15. Rxd4 {[%emt 0:04:15]} Bc6 {[%emt 0:02:17]} 16. h4 {[%emt 0:04:11]} Ra5 {[%emt 0:02:50]} 17. Be2 {[%emt 0:10:32]} Qe7 {[%emt 0:08:57]} 18. Qd2 {[%emt 0:02:51]} b6 {[%emt 0:04:52]} 19. Rg1 {[%emt 0:03:13]} Nd7 {[%emt 0:08:17]} 20. g5 {[%emt 0:02:16]} Nc5 {[%emt 0:07:37]} 21. Nd5 {[%emt 0:02:39]} Bxd5 {[%emt 0:02:46]} 22. Rxd5 {[%emt 0:01:13]} Qe6 {[%emt 0:02:14]} 23. h5 {[%emt 0:03:45]} Nb3+ {[%emt 0:00:33]} 24. cxb3 {[%emt 0:02:45]} Rxd5 {[%emt 0:00:08]} 25. exd5 {[%emt 0:01:56]} Qxe2 {[%emt 0:00:12]} 26. Qxe2 {[%emt 0:00:03]} Rxe2 {[%emt 0:00:08]} 27. bxa4 {[%emt 0:00:03]} Re3 {[%emt 0:00:30]} 28. Kd2 {[%emt 0:03:50]} Rxf3 {[%emt 0:00:13]} 29. Rc1 {[%emt 0:01:15]} Rf5 {[%emt 0:01:08]} 30. Rxc7 {[%emt 0:00:20]} Rxd5+ {[%emt 0:00:18]} 31. Kc3 {[%emt 0:00:32]} Kf8 {[%emt 0:00:15]} 32. Rc6 {[%emt 0:00:42]} Ke7 {[%emt 0:00:30]} 33. Rc7+ {[%emt 0:07:13]} Ke6 {[%emt 0:00:35]} 34. g6 {[%emt 0:00:39]} hxg6 {[%emt 0:00:38]} 35. hxg6 {[%emt 0:00:03]} Rc5+ {[%emt 0:02:02]} 36. Rxc5 {[%emt 0:00:06]} dxc5 {[%emt 0:00:05]} 37. gxf7 {[%emt 0:01:11]} Kxf7 {[%emt 0:00:07]} 38. Kd3 {[%emt 0:03:54]} Ke6 {[%emt 0:00:42]} 39. Ke4 {[%emt 0:00:12]} g6 {[%emt 0:00:32]} 40. b3 {[%emt 0:01:23]} g5 {[%emt 0:00:51]} 41. b4 {[%emt 0:01:31]} cxb4 {[%emt 0:00:06]} 42. axb4 {[%emt 0:00:01]} Kd6 {[%emt 0:00:17]} 43. Kd4 {[%emt 0:00:58]} g4 {[%emt 0:00:13]} 44. Ke4 {[%emt 0:00:15]} g3 {[%emt 0:00:07]} 45. Kf3 {[%emt 0:00:01]} Kd5 {[%emt 0:00:11]} 46. Kxg3 {[%emt 0:00:10]} Kc4 {[%emt 0:00:06]} 47. a5 {[%emt 0:00:07]} bxa5 {[%emt 0:00:05]} 48. bxa5 {[%emt 0:00:02]} Kb5 {[%emt 0:00:07]} 49. a6 {[%emt 0:00:02]} Kxa6 {[%emt 0:00:06]} 1/2-1/2

[Event "12th National Schools-ch 2024"]
[Site "Gyan Bhawan Patna"]
[Date "2024.02.06"]
[Round "2.8"]
[White "Sadbhav Rautela"]
[Black "Nanthabalan V B"]
[Result "1-0"]
[ECO "B52"]
[WhiteElo "1949"]
[BlackElo "1256"]
[Annotator "RC"]
[PlyCount "75"]
[EventDate "2024.02.05"]
[EventCountry "IND"]
[SourceTitle "playchess.com"]
[Source "ChessBase"]
[SourceQuality "1"]
[TimeControl "5400+30"]

1. e4 {[%emt 0:00:09]} c5 {[%emt 0:00:12]} 2. Nf3 {[%emt 0:00:09]} d6 {[%emt 0:00:33]} 3. Bb5+ {[%emt 0:00:09]} Bd7 {[%emt 0:00:20]} 4. Bxd7+ {[%emt 0:00:07]} Qxd7 {[%emt 0:00:12]} 5. c4 {[%emt 0:00:10]} Nf6 {[%emt 0:00:06]} 6. Nc3 {[%emt 0:00:09]} Nc6 {[%emt 0:00:07]} 7. O-O {[%emt 0:01:10]} g6 {[%emt 0:00:48]} 8. d4 {[%emt 0:00:07]} cxd4 {[%emt 0:00:10]} 9. Nxd4 {[%emt 0:00:10]} Bg7 {[%emt 0:00:46]} 10. Nc2 {[%emt 0:09:36]} O-O {[%emt 0:02:56]} 11. Ne3 {[%emt 0:05:08]} Rac8 {[%emt 0:03:38]} 12. Bd2 {[%emt 0:02:07]} Qe6 {[%emt 0:29:25]} 13. f3 {[%emt 0:03:12]} Nd7 {[%emt 0:05:45]} 14. Rc1 {[%emt 0:05:04]} Nde5 {[%emt 0:02:53]} 15. b3 {[%emt 0:02:45]} Nd3 {[%emt 0:02:45]} 16. Rb1 {[%emt 0:00:44]} Bd4 {[%emt 0:03:30]} 17. Ncd5 {[%emt 0:07:48]} Qe5 {[%emt 0:16:42]} 18. Kh1 {[%emt 0:04:48]} e6 {[%emt 0:08:55]} 19. Ng4 {[%emt 0:01:40]} Qg7 {[%emt 0:02:02]} 20. Bh6 {[%emt 0:01:32]} Qh8 {[%emt 0:02:34]} 21. Bxf8 {[%emt 0:04:14]} h5 {[%emt 0:05:44]} 22. Qxd3 {[%emt 0:01:30]} hxg4 {[%emt 0:00:19]} 23. Ne7+ {[%emt 0:00:39]} Nxe7 {[%emt 0:00:22]} 24. Bxe7 {[%emt 0:00:22]} g3 {[%emt 0:06:18]} 25. h3 {[%emt 0:00:30]} e5 {[%emt 0:02:28]} 26. Bg5 {[%emt 0:01:05]} f6 {[%emt 0:01:44]} 27. Be3 {[%emt 0:00:09]} Rc7 {[%emt 0:00:27]} 28. Bxd4 {[%emt 0:00:33]} Rh7 {[%emt 0:00:38]} 29. Kg1 {[%emt 0:00:56]} exd4 {[%emt 0:01:27]} 30. f4 {[%emt 0:01:04]} Kg7 {[%emt 0:01:10]} 31. Qxg3 {[%emt 0:00:11]} Qc8 {[%emt 0:00:19]} 32. Rbd1 {[%emt 0:00:19]} Qc5 {[%emt 0:00:04]} 33. Rd3 {[%emt 0:00:26]} Kh6 {[%emt 0:01:08]} 34. f5 {[%emt 0:00:39]} g5 {[%emt 0:00:30]} 35. h4 {[%emt 0:00:22]} Re7 {[%emt 0:00:30]} 36. hxg5+ {[%emt 0:00:16]} fxg5 {[%emt 0:00:08]} 37. Qh3+ {[%emt 0:00:09]} Kg7 {[%emt 0:00:01]} 38. f6+ {[%emt 0:00:23]} 1-0

[Event "12th National Schools-ch 2024"]
[Site "Gyan Bhawan Patna"]
[Date "2024.02.06"]
[Round "2.9"]
[White "Dishita Dey"]
[Black "Bhillva Nilaya Kondari Eswara "]
[Result "1-0"]
[ECO "B43"]
[WhiteElo "1238"]
[BlackElo "1843"]
[Annotator "NA RC"]
[PlyCount "113"]
[EventDate "2024.02.05"]
[EventCountry "IND"]
[SourceTitle "playchess.com"]
[Source "ChessBase"]
[SourceQuality "1"]
[TimeControl "5400+30"]

1. e4 {[%emt 0:01:34]} c5 {[%emt 0:00:26]} 2. Nf3 {[%emt 0:00:12]} e6 {[%emt 0:00:19]} 3. d4 {[%emt 0:00:13]} cxd4 {[%emt 0:00:18]} 4. Nxd4 {[%emt 0:00:51]} a6 {[%emt 0:00:16]} 5. Nc3 {[%emt 0:00:27]} b5 {[%emt 0:00:56]} 6. Qf3 {[%emt 0:04:39] B43: Sicilian: Kan Variation: 5 Nc3.} Bb7 {[%emt 0:06:29]} 7. a3 {[%emt 0:13:53]} Qc7 {[%emt 0:07:56]} 8. Bd3 {[%emt 0:08:49]} Bd6 {[%emt 0:06:29]} 9. h3 {[%emt 0:04:03]} Be5 {[%emt 0:06:15]} 10. Be3 {[%emt 0:02:10]} Nc6 {[%emt 0:03:43]} 11. Nce2 {[%emt 0:10:47]} Nf6 {[%emt 0:03:44]} 12. O-O {[%emt 0:00:40]} d5 {[%emt 0:03:01]} 13. exd5 {[%emt 0:14:03]} Nxd5 {[%emt 0:06:37]} 14. Be4 {[%emt 0:08:13]} O-O {[%emt 0:05:21]} 15. Bxd5 {[%emt 0:12:06]} Nxd4 {[%emt 0:01:05]} 16. Bxd4 {[%emt 0:01:42]} Bxd5 {[%emt 0:00:17]} 17. Qc3 {[%emt 0:04:00]} Qxc3 {[%emt 0:02:16]} 18. Bxc3 {[%emt 0:00:43]} Bd6 {[%emt 0:02:20]} 19. Rad1 {[%emt 0:00:45]} a5 {[%emt 0:01:35]} 20. Bd2 {[%emt 0:04:14]} b4 {[%emt 0:02:33]} 21. Bf4 {[%emt 0:04:48]} Be7 {[%emt 0:00:48]} 22. axb4 {[%emt 0:01:20]} axb4 {[%emt 0:03:33]} 23. b3 {[%emt 0:01:14]} Bf6 {[%emt 0:01:39]} 24. Bd2 {[%emt 0:00:28]} Rab8 {[%emt 0:01:49]} 25. Nc1 {[%emt 0:00:21]} Rfc8 {[%emt 0:06:10]} 26. Bf4 {[%emt 0:00:15]} Rb6 {[%emt 0:02:54]} ({Black should try} 26... Rb5 27. Rd2 Be4) 27. Rd2 {[%emt 0:00:36]} Bc3 {[%emt 0:02:06]} 28. Re2 {[%emt 0:00:42]} Re8 {[%emt 0:01:45]} ({Black should play} 28... Bc6 $17 29. Rd1 h6) 29. Be5 {[%emt 0:00:40]} Bxe5 {[%emt 0:02:06]} 30. Rxe5 {[%emt 0:00:18]} f6 {[%emt 0:02:17]} 31. Re2 {[%emt 0:00:33]} e5 {[%emt 0:01:17]} 32. Rd1 {[%emt 0:00:23]} Rd8 {[%emt 0:03:41]} 33. Red2 {[%emt 0:00:11]} Rbd6 {[%emt 0:00:09]} 34. Na2 {[%emt 0:00:18]} Kf7 {[%emt 0:01:41]} 35. Nxb4 {[%emt 0:00:10]} Ke6 {[%emt 0:00:10]} 36. Nxd5 {[%emt 0:00:31]} Rxd5 {[%emt 0:00:09]} 37. Rxd5 {[%emt 0:00:14]} Rxd5 {[%emt 0:00:04]} 38. Rxd5 {[%emt 0:00:08]} Kxd5 {[%emt 0:00:01]} 39. Kf1 {[%emt 0:00:37]} Kd4 {[%emt 0:01:09]} 40. Ke2 {[%emt 0:00:09]} Kc3 {[%emt 0:00:56]} 41. Ke3 {[%emt 0:00:35]} f5 {[%emt 0:01:16]} 42. g4 {[%emt 0:00:34]} g6 {[%emt 0:02:26]} 43. g5 {[%emt 0:01:13]} Kb4 {[%emt 0:03:09]} 44. Kd3 {[%emt 0:00:19]} Kc5 {[%emt 0:01:14]} 45. c4 {[%emt 0:00:22]} Kb4 {[%emt 0:01:20]} 46. h4 {[%emt 0:00:30]} Kc5 {[%emt 0:00:47]} 47. Kc3 {[%emt 0:00:16]} Kc6 {[%emt 0:03:32]} 48. b4 {[%emt 0:00:10]} e4 {[%emt 0:01:49]} 49. Kd4 {[%emt 0:00:08]} Kd6 {[%emt 0:00:26]} 50. b5 {[%emt 0:00:06]} Kc7 {[%emt 0:00:40]} 51. c5 {[%emt 0:00:16]} Kd7 {[%emt 0:00:32]} 52. Kd5 {[%emt 0:00:32]} Kc8 {[%emt 0:00:34]} 53. Kc6 {[%emt 0:00:44]} f4 {[%emt 0:01:28]} 54. b6 {[%emt 0:00:07]} e3 {[%emt 0:00:16]} 55. b7+ {[%emt 0:00:05]} Kb8 {[%emt 0:00:08]} 56. Kb6 {[%emt 0:00:07]} exf2 {[%emt 0:00:26]} 57. c6 {[%emt 0:00:08]} 1-0